fUSD/lending_fUSD_20251017
["ID","MTS","AMOUNT","RATE_DAILY","PERIOD"]
[391670015,1760724516943,-151.0,0.00041444,120]
[391670016,1760724516972,-151.0,0.00041444,120]
[391670017,1760724517000,-196.254452,0.00041444,120]
[391670018,1760724517027,-196.254452,0.00041444,120]
[391670019,1760724517054,-151.0,0.00041444,120]
[391670020,1760724517080,-196.254452,0.00041444,120]
[391670021,1760724517106,-3299.640341,0.00041444,30]
[391670022,1760724517131,-151.0,0.00041444,120]
[391670023,1760724517156,-3299.640341,0.00041444,30]
[391670024,1760724517181,-3299.640341,0.00041444,30]
[391670025,1760724517207,-3299.640341,0.00041444,30]
[391670026,1760724517232,-151.0,0.00041444,120]
[391670027,1760724517258,-151.0,0.00041444,120]
[391670028,1760724517284,-151.0,0.00041444,120]
[391670029,1760724517310,-489.0,0.0004148,60]
[391670030,1760724517335,-2339.6347,0.00041498,30]
[391670031,1760724517360,-1000.0,0.000415,120]
[391670032,1760724517384,-889.54244406,0.000415,120]
[391670033,1760724517410,-3029.0,0.000415,120]
[391670034,1760724517438,-2500.0,0.000415,120]
[391670035,1760724517469,-371.1,0.000415,90]
[391670036,1760724517494,-2500.0,0.000415,120]
[391670037,1760724517518,-2500.0,0.000415,120]
[391670038,1760724517542,-150.0,0.00041521,120]
[391670039,1760724517567,-489.0,0.00041534,60]
[391670040,1760724517591,-489.0,0.00041589,60]
[391670041,1760724517615,-489.0,0.00041644,60]
[391670042,1760724517639,-1000.0,0.00041666,60]
[391670043,1760724517663,-2339.6347,0.00041698,30]
[391670044,1760724517687,-489.0,0.00041699,60]
[391670045,1760724517711,-489.0,0.00041754,60]
[391670046,1760724517737,-40806.00400456,0.000418,120]
[391670047,1760724517762,-1700.883392,0.000418,120]
[391670048,1760724517786,-1700.883392,0.000418,120]
[391670049,1760724517811,-1700.883392,0.000418,120]
[391670050,1760724517839,-1700.883392,0.000418,120]
[391670051,1760724517866,-301.99999888,0.000418,120]
[391670052,1760724517893,-151.0,0.000418,30]
[391670053,1760724517920,-3365.557684,0.000418,120]
[391670054,1760724517949,-151.0,0.000418,120]
[391670055,1760724517977,-3365.557684,0.000418,120]
[391670056,1760724518004,-3365.557684,0.000418,120]
[391670057,1760724518029,-3365.557684,0.000418,120]
[391670058,1760724518054,-152.819949,0.000418,120]
[391670059,1760724518079,-273.442257,0.000418,120]
[391670060,1760724518105,-622.40572,0.000418,120]
[391670061,1760724518131,-691.151464,0.000418,120]
[391670062,1760724518158,-622.40572,0.000418,120]
[391670063,1760724518185,-691.151464,0.000418,120]
[391670064,1760724518213,-177.078586,0.000418,120]
[391670065,1760724518239,-151.0,0.000418,120]
[391670066,1760724518267,-691.151464,0.000418,120]
[391670067,1760724518293,-622.40572,0.000418,120]
[391670068,1760724518319,-151.0,0.000418,120]
[391670069,1760724518345,-622.40572,0.000418,120]
[391670070,1760724518372,-691.151464,0.000418,120]
[391670071,1760724518398,-151.0,0.000418,120]
[391670072,1760724518424,-151.0,0.000418,120]
[391670073,1760724518448,-151.0,0.000418,120]
[391670074,1760724518473,-264.297472,0.000418,120]
[391670075,1760724518499,-151.0,0.000418,120]
[391670076,1760724518617,-151.0,0.000418,120]
[391670077,1760724518643,-151.0,0.000418,120]
[391670078,1760724518669,-151.0,0.000418,120]
[391670079,1760724518699,-151.0,0.000418,120]
[391670080,1760724518727,-151.0,0.000418,120]
[391670081,1760724518755,-492.327322,0.000418,120]
[391670082,1760724518782,-492.327322,0.000418,120]
[391670083,1760724518810,-492.327322,0.000418,120]
[391670084,1760724518837,-492.327322,0.000418,120]
[391670085,1760724518865,-489.0,0.00041808,60]
[391670086,1760724518894,-900.0,0.0004182,60]
[391670087,1760724518922,-489.0,0.00041863,60]
[391670088,1760724518952,-2339.6347,0.00041898,30]
[391670089,1760724518981,-489.0,0.00041918,60]
[391670090,1760724519009,-3660.53503901,0.00041972,120]
[391670091,1760724519038,-151.0,0.00041972,120]
[391670092,1760724519068,-489.0,0.00041973,60]
[391670093,1760724519097,-1000.0,0.00041999,120]
[391670094,1760724519129,-50000.0,0.00042,42]
[391670095,1760724519158,-2000.0,0.00042,120]
[391670096,1760724519186,-897.49,0.00042,30]
[391670097,1760724519214,-1569.9687707,0.00042,120]
[391670098,1760724519242,-658.06726849,0.00042,120]
[391670099,1760724519270,-3035.0,0.00042,120]
[391670100,1760724519298,-500.0,0.00042,120]
[391670101,1760724519326,-400.0,0.00042,120]
[391670102,1760724519354,-3000.0,0.00042,120]
[391670103,1760724519382,-31259.4407295,0.00042,120]
[391670104,1760724519411,-39640.0,0.00042,120]
[391670105,1760724519439,-26946.90683852,0.00042,120]
[391670106,1760724519466,-514.27585391,0.00042,120]
[391670107,1760724519493,-10000.0,0.00042,120]
[391670108,1760724519520,-1105.0,0.00042,30]
[391670109,1760724519550,-5000.0,0.00042,120]
[391670110,1760724519579,-2025.45311436,0.00042,120]
[391670111,1760724519606,-4244.03,0.00042,120]
[391670112,1760724519632,-2500.0,0.00042,120]
[391670113,1760724519659,-150.0,0.00042,53]
[391670114,1760724519685,-230.01,0.00042,30]
[391670115,1760724519712,-2500.0,0.00042,120]
[391670116,1760724519738,-2500.0,0.00042,120]
[391670117,1760724519764,-489.0,0.00042028,60]
[391670118,1760724519790,-489.0,0.00042082,60]
[391670119,1760724519818,-2339.6347,0.00042098,30]
[391670120,1760724519844,-489.0,0.00042137,60]
[391670121,1760724519871,-489.0,0.00042192,60]
[391670122,1760724519902,-489.0,0.00042247,60]
[391670123,1760724519930,-2339.6347,0.00042298,30]
[391670124,1760724519958,-489.0,0.00042301,60]
[391670125,1760724519986,-4200.00075273,0.00042333,120]
[391670126,1760724520014,-493.60143546,0.00042356,60]
[391670127,1760724520042,-900.0,0.00042368,60]
[391670128,1760724520070,-500.0,0.00042368,60]
[391670129,1760724520098,-11111.1,0.00042375,117]
[391670130,1760724520127,-200.0,0.00042497,120]
[391670131,1760724520155,-2339.6347,0.00042498,30]
[391670132,1760724520182,-1673.20741455,0.000425,60]
[391670133,1760724520209,-1284.37572886,0.000425,120]
[391670134,1760724520238,-1000.0,0.000425,120]
[391670135,1760724520265,-152.0,0.000425,120]
[391670136,1760724520292,-1570.0,0.000425,120]
[391670137,1760724520320,-2972.11244889,0.000425,120]
[391670138,1760724520347,-2500.0,0.000425,120]
[391670139,1760724520373,-2500.0,0.000425,120]
[391670140,1760724520400,-2500.0,0.000425,120]
[391670141,1760724520425,-989.76765351,0.000426,120]
[391670142,1760724520452,-827.92687474,0.000426,120]
[391670143,1760724520477,-500.0,0.00042642,60]
[391670144,1760724520504,-1000.0,0.0004266,120]
[391670145,1760724520530,-1000.0,0.00042666,60]
[391670146,1760724520558,-720.27779177,0.000427,120]
[391670147,1760724520585,-214.53850225,0.000427,120]
[391670148,1760724520612,-217.12088508,0.000427,120]
[391670149,1760724520638,-2500.0,0.00042745,120]
[391670150,1760724520666,-1327.22313256,0.000428,120]
[391670151,1760724520693,-1137.2000035,0.000428,120]
[391670152,1760724520720,-661.29,0.000428,120]
[391670153,1760724520747,-1272.94641987,0.000429,120]
[391670154,1760724520774,-5000.0,0.000429,120]
[391670155,1760724520801,-150.0,0.00042915,120]
[391670156,1760724520828,-300.0,0.00042999,30]
[391670157,1760724520855,-300.0,0.00042999,30]
[391670158,1760724520883,-300.0,0.00042999,30]
[391670159,1760724520913,-1000.0,0.00042999,120]
[391670160,1760724520941,-311.75081399,0.00042999,120]
[391670161,1760724520968,-2000.0,0.00043,120]
[391670162,1760724520996,-2300.49422191,0.00043,120]
[391670163,1760724521024,-225.5308067,0.00043,120]
[391670164,1760724521052,-500.0,0.00043,120]
[391670165,1760724521294,-300.0,0.00043,120]
[391670166,1760724521325,-1027.0,0.00043,110]
[391670167,1760724521354,-40000.0,0.00043,120]
[391670168,1760724521382,-40432.15,0.00043,120]
[391670169,1760724521409,-836.67956525,0.00043,120]
[391670170,1760724521436,-2546.0,0.00043,120]
[391670171,1760724521462,-155.38631582,0.00043,120]
[391670172,1760724521489,-5182.87995519,0.00043,120]
[391670173,1760724521516,-19000.0,0.00043,30]
[391670174,1760724521542,-52036.13104224,0.00043,120]
[391670175,1760724521569,-8436.0,0.00043,120]
[391670176,1760724521596,-12567.0,0.00043,120]
[391670177,1760724521624,-462211.87045605,0.00043,120]
[391670178,1760724521653,-2500.0,0.00043,120]
[391670179,1760724521680,-1688.0,0.00043,120]
[391670180,1760724521708,-2500.0,0.00043,120]
[391670181,1760724521734,-1791.22,0.00043,30]
[391670182,1760724521761,-250.2,0.00043,120]
[391670183,1760724521788,-203.02,0.00043014,120]
[391670184,1760724521815,-1091.0,0.00043048,30]
[391670185,1760724521842,-87196.414,0.00043056,120]
[391670186,1760724521868,-87196.415,0.00043056,120]
[391670187,1760724521895,-87196.415,0.00043056,120]
[391670188,1760724521920,-87196.415,0.00043056,120]
[391670189,1760724521949,-87196.415,0.00043056,120]
[391670190,1760724521977,-598.32056447,0.0004328,120]
[391670191,1760724522004,-167.69861685,0.000433,120]
[391670192,1760724522031,-151.0,0.00043441,120]
[391670193,1760724522059,-300.0,0.00043443,30]
[391670194,1760724522087,-300.0,0.00043443,30]
[391670195,1760724522114,-300.0,0.00043443,30]
[391670196,1760724522144,-504907.5203,0.00043444,30]
[391670197,1760724522172,-151.0,0.00043444,120]
[391670198,1760724522200,-271.395856,0.00043444,120]
[391670199,1760724522230,-301.99999964,0.00043444,120]
[391670200,1760724522257,-151.0,0.00043444,120]
[391670201,1760724522287,-164.390605,0.00043444,120]
[391670202,1760724522316,-164.390605,0.00043444,120]
[391670203,1760724522345,-164.390605,0.00043444,120]
[391670204,1760724522372,-164.390611,0.00043444,120]
[391670205,1760724522398,-151.0,0.00043444,120]
[391670206,1760724522426,-151.0,0.00043444,120]
[391670207,1760724522452,-151.0,0.00043444,120]
[391670208,1760724522478,-151.0,0.00043444,120]
[391670209,1760724522505,-151.0,0.00043444,120]
[391670210,1760724522531,-151.0,0.00043444,120]
[391670211,1760724522556,-151.0,0.00043444,120]
[391670212,1760724522585,-292.472724,0.00043444,120]
[391670213,1760724522612,-292.472724,0.00043444,120]
[391670214,1760724522640,-292.472724,0.00043444,120]
[391670215,1760724522666,-292.472719,0.00043444,120]
[391670216,1760724522694,-151.0,0.00043444,120]
[391670217,1760724522721,-200.488771,0.00043444,120]
[391670218,1760724522749,-319.058821,0.00043444,120]
[391670219,1760724522776,-151.0,0.00043444,120]
[391670220,1760724522804,-319.058821,0.00043444,120]
[391670221,1760724522843,-151.0,0.00043444,120]
[391670222,1760724522871,-151.0,0.00043444,120]
[391670223,1760724522901,-319.058821,0.00043444,120]
[391670224,1760724522930,-151.0,0.00043444,120]
[391670225,1760724522961,-319.05882631,0.00043444,120]
[391670226,1760724522991,-151.0,0.00043444,120]
[391670227,1760724523019,-151.0,0.00043444,120]
[391670228,1760724523051,-151.0,0.00043444,120]
[391670229,1760724523084,-151.0,0.00043444,120]
[391670230,1760724523113,-185.858626,0.00043444,120]
[391670231,1760724523144,-185.858626,0.00043444,120]
[391670232,1760724523172,-185.858626,0.00043444,120]
[391670233,1760724523203,-185.858634,0.00043444,120]
[391670234,1760724523232,-151.0,0.00043444,120]
[391670235,1760724523260,-151.0,0.00043444,120]
[391670236,1760724523287,-151.0,0.00043444,120]
[391670237,1760724523358,-151.0,0.00043444,120]
[391670238,1760724523384,-151.0,0.00043444,120]
[391670239,1760724523411,-151.0,0.00043444,120]
[391670240,1760724523437,-151.0,0.00043444,120]
[391670241,1760724523463,-151.0,0.00043444,120]
[391670242,1760724523489,-190.475164,0.00043444,120]
[391670243,1760724523516,-166.206169,0.00043444,120]
[391670244,1760724523543,-151.0,0.00043444,120]
[391670245,1760724523572,-166.206169,0.00043444,120]
[391670246,1760724523599,-166.206169,0.00043444,120]
[391670247,1760724523626,-316.993257,0.00043444,120]
[391670248,1760724523652,-166.206168,0.00043444,120]
[391670249,1760724523679,-316.993257,0.00043444,120]
[391670250,1760724523706,-316.993257,0.00043444,120]
[391670251,1760724523734,-309.876918,0.00043444,120]
[391670252,1760724523761,-316.993259,0.00043444,120]
[391670253,1760724523788,-309.876918,0.00043444,120]
[391670254,1760724523815,-309.876918,0.00043444,120]
[391670255,1760724523843,-309.876916,0.00043444,120]
[391670256,1760724523869,-196.254452,0.00043444,120]
[391670257,1760724523897,-151.0,0.00043444,120]
[391670258,1760724523924,-196.254452,0.00043444,120]
[391670259,1760724523952,-196.254452,0.00043444,120]
[391670260,1760724523979,-151.0,0.00043444,120]
[391670261,1760724524006,-196.254456,0.00043444,120]
[391670262,1760724524033,-3299.640341,0.00043444,30]
[391670263,1760724524059,-280.822506,0.00043444,120]
[391670264,1760724524087,-3299.640341,0.00043444,30]
[391670265,1760724524116,-3299.640341,0.00043444,30]
[391670266,1760724524146,-3299.640338,0.00043444,30]
[391670267,1760724524174,-151.0,0.00043444,120]
[391670268,1760724524203,-151.0,0.00043444,120]
[391670269,1760724524232,-151.0,0.00043444,120]
[391670270,1760724524260,-1700.883392,0.00043444,120]
[391670271,1760724524287,-1700.883392,0.00043444,120]
[391670272,1760724524314,-1700.883392,0.00043444,120]
[391670273,1760724524341,-1700.883392,0.00043444,120]
[391670274,1760724524367,-151.0,0.00043444,30]
[391670275,1760724524393,-3365.557684,0.00043444,120]
[391670276,1760724524419,-151.0,0.00043444,120]
[391670277,1760724524446,-3365.557684,0.00043444,120]
[391670278,1760724524472,-3365.557684,0.00043444,120]
[391670279,1760724524498,-3365.557684,0.00043444,120]
[391670280,1760724524525,-622.40572,0.00043444,120]
[391670281,1760724524553,-691.151464,0.00043444,120]
[391670282,1760724524580,-691.151464,0.00043444,120]
[391670283,1760724524607,-622.40572,0.00043444,120]
[391670284,1760724524634,-151.0,0.00043444,120]
[391670285,1760724524664,-622.40572,0.00043444,120]
[391670286,1760724524690,-151.0,0.00043444,120]
[391670287,1760724524718,-691.151464,0.00043444,120]
[391670288,1760724524744,-622.40572,0.00043444,120]
[391670289,1760724524772,-691.151464,0.00043444,120]
[391670290,1760724524799,-151.0,0.00043444,120]
[391670291,1760724524827,-151.0,0.00043444,120]
[391670292,1760724524854,-151.0,0.00043444,120]
[391670293,1760724524889,-153.212861,0.00043444,120]
[391670294,1760724524917,-151.0,0.00043444,120]
[391670295,1760724524946,-151.0,0.00043444,120]
[391670296,1760724524975,-151.0,0.00043444,120]
[391670297,1760724525002,-151.0,0.00043444,120]
[391670298,1760724525031,-151.0,0.00043444,120]
[391670299,1760724525060,-492.327322,0.00043444,120]
[391670300,1760724525089,-492.327322,0.00043444,120]
[391670301,1760724525119,-492.327322,0.00043444,120]
[391670302,1760724525147,-492.327322,0.00043444,120]
[391670303,1760724525176,-151.0,0.00043444,120]
[391670304,1760724525204,-900.0,0.00043464,60]
[391670305,1760724525231,-500.0,0.00043464,60]
[391670306,1760724525259,-600.0,0.000435,120]
[391670307,1760724525287,-220.61816105,0.000435,30]
[391670308,1760724525315,-171.85057353,0.000435,120]
[391670309,1760724525343,-2500.0,0.000435,120]
[391670310,1760724525374,-2500.0,0.000435,120]
[391670311,1760724525402,-66868.0,0.0004356,120]
[391670312,1760724525429,-165.780699,0.0004356,120]
[391670313,1760724525459,-194.881593,0.0004356,120]
[391670314,1760724525486,-151.0,0.0004356,120]
[391670315,1760724525516,-194.881593,0.0004356,120]
[391670316,1760724525546,-194.881593,0.0004356,120]
[391670317,1760724525576,-194.881601,0.0004356,120]
[391670318,1760724525605,-219.451034,0.0004356,120]
[391670319,1760724525639,-151.0,0.0004356,120]
[391670320,1760724525667,-219.451034,0.0004356,120]
[391670321,1760724525694,-219.451034,0.0004356,120]
[391670322,1760724525722,-219.451033,0.0004356,120]
[391670323,1760724525749,-151.0,0.0004356,120]
[391670324,1760724525778,-151.0,0.0004356,120]
[391670325,1760724525809,-151.0,0.0004356,120]
[391670326,1760724525837,-229.27668,0.0004356,120]
[391670327,1760724525865,-229.27668,0.0004356,120]
[391670328,1760724525894,-229.27668,0.0004356,120]
[391670329,1760724525922,-229.27669,0.0004356,120]
[391670330,1760724525952,-151.0,0.0004356,120]
[391670331,1760724525982,-55903.439999,0.0004356,120]
[391670332,1760724526013,-95000.000001,0.000436,120]
[391670333,1760724526041,-152.0,0.000436,120]
[391670334,1760724526069,-1000.0,0.00043666,60]
[391670335,1760724526101,-266.67443632,0.000437,120]
[391670336,1760724526129,-500.0,0.00043738,60]
[391670337,1760724526158,-147872.0586873,0.000438,120]
[391670338,1760724526186,-494.36075366,0.000438,30]
[391670339,1760724526215,-806.19030588,0.000438,120]
[391670340,1760724526243,-3704.11211851,0.000438,90]
[391670341,1760724526272,-10428.09704622,0.000438,120]
[391670342,1760724526437,-12228.9488194,0.000438,120]
[391670343,1760724526466,-4000.0,0.00043826,30]
[391670344,1760724526493,-13340.3725,0.00043835,120]
[391670345,1760724526523,-2713.41411704,0.00043898,74]
[391670346,1760724526550,-506.7,0.00043955,120]
[391670347,1760724526578,-1000.0,0.00043984,120]
[391670348,1760724526604,-102816.45365565,0.00043987,120]
[391670349,1760724526631,-200.0,0.00043997,120]
[391670350,1760724526661,-50000.0,0.00044,44]
[391670351,1760724526688,-2049.80482821,0.00044,120]
[391670352,1760724526715,-11971.00522378,0.00044,30]
[391670353,1760724526742,-4259.41530691,0.00044,30]
[391670354,1760724526769,-10000.0,0.00044,45]
[391670355,1760724526796,-2000.0,0.00044,120]
[391670356,1760724526824,-545.67747475,0.00044,120]
[391670357,1760724526860,-500.0,0.00044,120]
[391670358,1760724526895,-184.83747059,0.00044,120]
[391670359,1760724526925,-302.71115302,0.00044,120]
[391670360,1760724526956,-300.0,0.00044,120]
[391670361,1760724526990,-3060.0,0.00044,120]
[391670362,1760724527022,-2500.0,0.00044,120]
[391670363,1760724527055,-544.177895,0.00044,57]
[391670364,1760724527085,-2500.0,0.00044,120]
[391670365,1760724527115,-207.77,0.00044,30]
[391670366,1760724527146,-4112.33,0.00044233,120]
[391670367,1760724527176,-18073.73750196,0.00044246,120]
[391670368,1760724527206,-1167.98569164,0.00044246,120]
[391670369,1760724527240,-11906.36840436,0.00044324,30]
[391670370,1760724527271,-300.0,0.00044399,30]
[391670371,1760724527302,-300.0,0.00044399,30]
[391670372,1760724527336,-1046434.77629721,0.000444,120]
[391670373,1760724527366,-2000.0,0.0004444,43]
[391670374,1760724527395,-18593.21785231,0.000445,120]
[391670375,1760724527423,-769.73000042,0.000445,120]
[391670376,1760724527450,-287.79928116,0.000445,120]
[391670377,1760724527478,-2500.0,0.000445,120]
[391670378,1760724527509,-2500.0,0.000445,120]
[391670379,1760724527538,-900.0,0.0004456,60]
[391670380,1760724527567,-500.0,0.0004456,60]
[391670381,1760724527596,-1000.0,0.00044666,60]
[391670382,1760724527625,-20000.0,0.000448,120]
[391670383,1760724527653,-152.0,0.000448,120]
[391670384,1760724527681,-500.0,0.00044834,60]
[391670385,1760724527708,-304.54965627,0.0004489,120]
[391670386,1760724527742,-300.0,0.00044899,30]
[391670387,1760724527771,-318475.72177672,0.000449,30]
[391670388,1760724527800,-2131.8896965,0.000449,30]
[391670389,1760724527831,-5000.0,0.000449,120]
[391670390,1760724527862,-1700.883392,0.000449,120]
[391670391,1760724527893,-1700.883392,0.000449,120]
[391670392,1760724527922,-1700.883392,0.000449,120]
[391670393,1760724527956,-1700.883382,0.000449,120]
[391670394,1760724527988,-3365.557684,0.000449,120]
[391670395,1760724528017,-151.0,0.000449,120]
[391670396,1760724528047,-3365.557684,0.000449,120]
[391670397,1760724528077,-3365.557684,0.000449,120]
[391670398,1760724528108,-3365.557679,0.000449,120]
[391670399,1760724528143,-622.40572,0.000449,120]
[391670400,1760724528175,-691.151464,0.000449,120]
[391670401,1760724528209,-691.151464,0.000449,120]
[391670402,1760724528239,-622.40572,0.000449,120]
[391670403,1760724528269,-151.0,0.000449,120]
[391670404,1760724528301,-622.40572,0.000449,120]
[391670405,1760724528330,-151.0,0.000449,120]
[391670406,1760724528359,-691.151464,0.000449,120]
[391670407,1760724528387,-622.40572016,0.000449,120]
[391670408,1760724528417,-691.151461,0.000449,120]
[391670409,1760724528446,-151.0,0.000449,120]
[391670410,1760724528474,-151.0,0.000449,120]
[391670411,1760724528502,-151.0,0.000449,120]
[391670412,1760724528530,-220.737936,0.000449,120]
[391670413,1760724528558,-151.0,0.000449,120]
[391670414,1760724528586,-151.0,0.000449,120]
[391670415,1760724528613,-151.0,0.000449,120]
[391670416,1760724528639,-151.0,0.000449,120]
[391670417,1760724528666,-492.327322,0.000449,120]
[391670418,1760724528693,-492.327322,0.000449,120]
[391670419,1760724528721,-492.327322,0.000449,120]
[391670420,1760724528748,-492.327329,0.000449,120]
[391670421,1760724528776,-151.0,0.000449,120]
[391670422,1760724528804,-150.0,0.0004499,120]
[391670423,1760724528832,-700.0,0.0004499,120]
[391670424,1760724528860,-150.0,0.0004499,120]
[391670425,1760724528890,-43600.0,0.0004499,120]
[391670426,1760724528918,-500.0,0.0004499,120]
[391670427,1760724528947,-300.0,0.00044999,30]
[391670428,1760724528978,-1000.0,0.00044999,120]
[391670429,1760724529008,-21492.91,0.00045,30]
[391670430,1760724529036,-10000.0,0.00045,30]
[391670431,1760724529335,-19870.92860062,0.00045,30]
[391670432,1760724529372,-1109.06823014,0.00045,32]
[391670433,1760724529401,-2500.0,0.00045,30]
[391670434,1760724529431,-9994.99999901,0.00045,45]
[391670435,1760724529459,-20000.0,0.00045,38]
[391670436,1760724529490,-10000.0,0.00045,30]
[391670437,1760724529517,-50000.0,0.00045,30]
[391670438,1760724529546,-150.0,0.00045,50]
[391670439,1760724529574,-53171.45115074,0.00045,30]
[391670440,1760724530142,171.38,0.0001602,2]
[391670441,1760724537628,-1000.0,0.00029886,90]
[391670442,1760724537657,-1000.0,0.00029886,90]
[391670443,1760724537685,-1000.0,0.00029886,90]
[391670444,1760724537740,-151.0,0.00040998,120]
[391670445,1760724537768,-151.0,0.00040998,120]
[391670446,1760724537795,-151.0,0.00040998,120]
[391670447,1760724537823,-151.0,0.00040998,120]
[391670448,1760724537850,-151.0,0.00040998,120]
[391670449,1760724537878,-151.0,0.00040998,120]
[391670450,1760724537909,-151.0,0.00040998,120]
[391670451,1760724537940,-151.0,0.00040998,120]
[391670452,1760724537970,-151.0,0.00040998,120]
[391670453,1760724538000,-151.0,0.00040998,120]
[391670454,1760724538030,-151.0,0.00040998,120]
[391670455,1760724538058,-151.0,0.00040998,120]
[391670456,1760724538089,-151.0,0.00040998,120]
[391670457,1760724538118,-151.0,0.00040998,120]
[391670458,1760724538146,-151.0,0.00040998,120]
[391670459,1760724538175,-686.33,0.00040998,30]
[391670460,1760724538206,-151.0,0.00041972,120]
[391670461,1760724538235,-151.0,0.00041972,120]
[391670462,1760724538263,-151.0,0.00041972,120]
[391670463,1760724538291,-151.0,0.00041972,120]
[391670464,1760724538319,-176.433698,0.00041972,120]
[391670465,1760724538346,-151.0,0.00041972,120]
[391670466,1760724538373,-151.0,0.00041972,120]
[391670467,1760724538400,-34828.6,0.00043194,120]
[391670468,1760724538426,-14663.97824774,0.00043194,120]
[391670469,1760724538452,-637.34953621,0.00043194,120]
[391670470,1760724538479,-13957.3,0.00043194,120]
[391670471,1760724538505,-151.0,0.00043444,120]
[391670472,1760724538531,-151.0,0.00043444,120]
[391670473,1760724538604,-151.0,0.00043444,120]
[391670474,1760724538631,-220.026776,0.00043444,120]
[391670475,1760724538658,-192.689283,0.00043444,120]
[391670476,1760724538685,-151.0,0.00043444,120]
[391670477,1760724538713,-151.0,0.000449,120]
[391670478,1760724538739,-151.0,0.000449,120]
[391670479,1760724538765,-151.0,0.000449,120]
[391670480,1760724538792,-295.453508,0.000449,120]
[391670481,1760724538823,-93597.68765016,0.00045,60]
[391670482,1760724538848,-661.89391383,0.00045,120]
[391670483,1760724538875,-46828.54884926,0.00045,30]
[391670484,1760724538905,-156.1,0.00045,85]
[391670485,1760724538933,-1000000.0,0.00045,120]
[391670486,1760724538960,-1000000.0,0.00045,120]
[391670487,1760724538990,-1000000.0,0.00045,120]
[391670488,1760724539017,-600.0,0.00045,120]
[391670489,1760724539045,-2000.0,0.00045,120]
[391670490,1760724539071,-311.25910766,0.00045,60]
[391670491,1760724539098,-1500.0,0.00045,120]
[391670492,1760724539127,-1000000.0,0.00045,120]
[391670493,1760724539155,-2320.4224553,0.00045,120]
[391670494,1760724539183,-2042.97825291,0.00045,60]
[391670495,1760724539210,-531.89717499,0.00045,120]
[391670496,1760724539238,-2000.05135417,0.00045,120]
[391670497,1760724539265,-1190.60678377,0.00045,120]
[391670498,1760724539293,-1802.27191607,0.00045,120]
[391670499,1760724539321,-1518.0,0.00045,120]
[391670500,1760724539347,-500.0,0.00045,120]
[391670501,1760724539374,-2204.51114955,0.00045,120]
[391670502,1760724539400,-2620.56884459,0.00045,120]
[391670503,1760724539427,-3870.488632,0.00045,120]
[391670504,1760724539453,-2770.4525032,0.00045,120]
[391670505,1760724539480,-2000.0,0.00045,30]
[391670506,1760724539507,-756086.10036359,0.00045,120]
[391670512,1760724571927,10261.04201578,0.000195,2]
[391670513,1760724572497,10261.04201578,0.000197,2]
[391670514,1760724573592,1300.10973197,0.000199,2]
[391670515,1760724603563,-151.0,0.00031,120]
[391670516,1760724603596,-190.51,0.00031323,30]
[391670517,1760724603628,-151.0,0.000318,120]
[391670518,1760724603661,-151.0,0.000325,120]
[391670519,1760724603694,-151.0,0.000333,120]